bitfinex-derivatives/quotes_BTCF0:USTF0_20210111
["timestamp","ask_amount","ask_price","bid_price","bid_amount"]
[1610364542004,0.07123,34690.0,34670.0,0.07089]
[1610364542203,0.2841,34697.0,34670.0,0.07089]
[1610364543407,0.2841,34697.0,34671.0,0.0867]
[1610364543804,0.2841,34697.0,34670.0,0.07089]
[1610364544804,0.3706,34697.0,34671.0,0.0856]
[1610364545006,0.3706,34697.0,34670.0,0.07089]
[1610364545205,0.2841,34697.0,34670.0,0.07089]
[1610364545406,0.1819,34697.0,34670.0,0.07089]
[1610364545805,0.13632608,34671.0,34665.0,0.13632608]
[1610364546008,0.13632608,34671.0,34656.0,4.84672]
[1610364546205,0.13632608,34671.0,34656.0,0.09352]
[1610364546604,0.13632608,34671.0,34656.0,0.08352]
[1610364547004,0.07187,34684.0,34656.0,0.0862]
[1610364547416,0.07187,34684.0,34650.0,0.0861]
[1610364547609,0.07187,34684.0,34641.0,4.7301]
[1610364547805,0.13632608,34659.0,34658.0,0.13632608]
[1610364548005,0.13632608,34659.0,34641.0,4.7301]
[1610364548205,0.11325,34674.0,34641.0,4.7301]
[1610364548410,0.07187,34684.0,34641.0,4.7301]
[1610364549608,1.86674203,34683.0,34641.0,4.7301]
[1610364549808,0.13632608,34665.0,34660.0,0.13632608]
[1610364551609,1.92151534,34684.0,34660.0,0.13632608]
[1610364551809,1.84339342,34683.0,34660.0,0.11225]
[1610364552108,1.84367305,34689.0,34660.0,0.11225]
[1610364552509,3.5532,34691.0,34660.0,0.11225]
[1610364553112,3.5532,34691.0,34661.0,0.00027948]
[1610364553912,3.5532,34691.0,34690.0,0.13632608]
[1610364554313,3.5532,34691.0,34690.0,0.24566608]
[1610364554514,1.84774112,34706.0,34690.0,0.24566608]
[1610364555117,1.84684036,34707.0,34690.0,0.24566608]
[1610364555418,1.84800613,34705.0,34690.0,0.24566608]
[1610364555819,1.84789429,34706.0,34704.0,0.13632608]
[1610364556222,1.84691854,34708.0,34702.0,0.07149]
[1610364556421,1.99515499,34709.0,34690.0,0.10934]
[1610364556620,2.01560299,34711.0,34690.0,0.10934]
[1610364557021,2.18672049,34718.0,34690.0,0.10934]
[1610364557421,2.19257876,34717.0,34690.0,0.10934]
[1610364557621,2.19257876,34717.0,34691.0,0.0866]
[1610364557821,2.1952601,34716.0,34691.0,0.0866]
[1610364558222,2.3612257,34720.0,34691.0,0.0866]
[1610364558223,2.19783475,34717.0,34691.0,0.0866]
[1610364558624,2.19659625,34718.0,34691.0,0.0866]
[1610364558824,1.96819625,34718.0,34691.0,0.0866]
[1610364559022,2.36495158,34725.0,34691.0,0.0866]
[1610364559223,2.36556135,34730.0,34692.0,0.00027926]
[1610364559424,2.36556135,34730.0,34696.0,3.8924]
[1610364559623,2.36843235,34731.0,34696.0,3.8924]
[1610364559923,2.36843235,34731.0,34727.0,0.13632608]
[1610364560123,2.53451795,34734.0,34727.0,0.20898608]
[1610364560524,2.5242975,34733.0,34727.0,0.07266]
[1610364560725,2.51853658,34735.0,34727.0,0.07266]
[1610364561025,2.65408197,34737.0,34727.0,0.07266]
[1610364561427,2.5169481,34734.0,34727.0,0.07266]
[1610364561624,0.0874,34733.0,34645.0,1.60151]
[1610364561825,2.51711824,34732.0,34645.0,1.60151]
[1610364562025,0.13632608,34718.0,34713.0,0.13632608]
[1610364562425,0.13632608,34718.0,34714.0,0.0853]
[1610364562626,0.13632608,34718.0,34715.0,0.0855]
[1610364563427,0.0861,34717.0,34715.0,0.0855]
[1610364563632,0.19323,34717.0,34654.0,7.1658]
[1610364563828,0.19323,34717.0,34655.0,0.2728]
[1610364564031,0.13632608,34699.0,34655.0,0.2728]
[1610364564233,0.22674608,34699.0,34654.0,7.1658]
[1610364564630,0.22674608,34699.0,34670.0,3.7782]
[1610364565231,2.52223602,34695.0,34670.0,3.7782]
[1610364565634,2.52198842,34691.0,34670.0,3.7782]
[1610364565832,2.62430842,34691.0,34670.0,3.7782]
[1610364566032,0.13632608,34675.0,34672.0,0.13632608]
[1610364566634,2.54124638,34688.0,34672.0,0.13632608]
[1610364566831,2.54124638,34688.0,34673.0,0.0871]
[1610364567032,2.54616478,34686.0,34673.0,0.0871]
[1610364567232,2.54616478,34686.0,34672.0,0.13632608]
[1610364567432,0.10232,34691.0,34672.0,0.13632608]
[1610364567933,0.13632608,34688.0,34687.0,0.13632608]
[1610364568132,0.13632608,34688.0,34670.0,3.7782]
[1610364568732,0.13632608,34688.0,34671.0,0.0865]
[1610364569235,2.23274651,34684.0,34671.0,0.0865]
[1610364569434,1.79114651,34684.0,34671.0,0.0865]
[1610364569632,2.74692863,34691.0,34671.0,0.0865]
[1610364569832,2.68972863,34691.0,34670.0,3.7782]
[1610364570033,2.40867055,34694.0,34690.0,0.13632608]
[1610364570233,2.33667055,34694.0,34691.0,0.0867]
[1610364570433,0.08851,34708.0,34682.0,0.08168]
[1610364570633,0.2916,34716.0,34682.0,0.08168]
[1610364570835,0.00035112,34707.0,34682.0,0.08168]
[1610364571232,0.08338,34707.0,34682.0,0.08168]
[1610364571433,0.00035112,34706.0,34683.0,0.0871]
[1610364572039,0.08338,34707.0,34705.0,0.13632608]
[1610364572234,0.08078,34707.0,34705.0,0.13632608]
[1610364572634,0.16838,34707.0,34705.0,0.13632608]
[1610364573334,0.08078,34707.0,34705.0,0.13632608]
[1610364573534,0.00035113,34706.0,34690.0,0.0868]
[1610364573734,0.00035113,34706.0,34689.0,0.08141]
[1610364573935,0.00035113,34706.0,34702.0,0.13632608]
[1610364574136,0.00035113,34706.0,34683.0,0.0872]
[1610364574337,0.00035113,34706.0,34682.0,0.08168]
[1610364574735,0.00035113,34706.0,34624.0,0.284]
[1610364574935,0.00035113,34706.0,34663.0,3.5931]
[1610364575941,0.13632608,34664.0,34663.0,3.72942608]
[1610364576738,0.09721,34686.0,34663.0,3.72942608]
[1610364577140,0.0003514,34685.0,34663.0,3.72942608]
[1610364577939,0.0003514,34685.0,34655.0,0.0852]
[1610364577940,0.13632608,34672.0,34661.0,0.13632608]
[1610364578140,0.13632608,34672.0,34656.0,4.4211]
[1610364579943,0.11288,34678.0,34664.0,0.13632608]
[1610364580145,0.11288,34678.0,34665.0,0.086]
[1610364580345,0.00035148,34677.0,34665.0,0.086]
[1610364580545,0.11288,34678.0,34665.0,0.086]
[1610364581347,0.00035146,34677.0,34665.0,0.086]
[1610364581547,0.00035146,34677.0,34656.0,4.4211]
[1610364581949,0.13632608,34657.0,34656.0,4.4211]
[1610364584353,0.13632608,34657.0,34640.0,3.761]
[1610364585157,2.608e-05,34657.0,34640.0,3.761]
[1610364585355,0.03722608,34662.0,34640.0,3.761]
[1610364585954,0.03722608,34662.0,34661.0,0.13632608]
[1610364586354,0.03722608,34662.0,34648.0,0.0868]
[1610364586555,0.03722608,34662.0,34640.0,3.761]
[1610364586955,0.02222608,34662.0,34640.0,3.761]
[1610364587253,0.0863,34663.0,34640.0,3.761]
[1610364588253,2.49433716,34664.0,34640.0,3.761]
[1610364588454,2.49472034,34666.0,34640.0,3.761]
[1610364589554,0.0866,34670.0,34640.0,3.761]
[1610364589555,2.49128508,34660.0,34640.0,3.761]
[1610364589755,2.48889287,34655.0,34623.0,4.5356]
[1610364589958,0.13632608,34624.0,34623.0,4.5356]
[1610364592360,0.22282608,34624.0,34623.0,4.5356]
[1610364592563,0.13632608,34624.0,34623.0,4.5356]
[1610364593862,0.13632608,34624.0,34610.0,3.5952]
[1610364594063,0.13632608,34611.0,34610.0,3.5952]
[1610364594865,0.13632608,34611.0,34605.0,0.13632608]
[1610364595466,0.09503,34626.0,34605.0,0.13632608]
[1610364595665,0.09503,34626.0,34605.0,0.20804608]
[1610364596064,0.13632608,34624.0,34623.0,0.13632608]
[1610364596265,0.05052608,34624.0,34623.0,0.13632608]
[1610364596464,0.09503,34626.0,34623.0,0.13632608]
[1610364598067,0.23135608,34626.0,34623.0,0.13632608]
[1610364598667,0.23135608,34626.0,34619.0,0.0873]
[1610364598868,0.23135608,34626.0,34605.0,0.07172]
[1610364600172,0.13632608,34612.0,34605.0,0.07172]
[1610364600771,0.13632608,34612.0,34592.0,0.0873]
[1610364600973,0.12812608,34612.0,34592.0,0.0873]
[1610364601170,0.09503,34626.0,34592.0,0.0873]
[1610364601371,0.2943,34632.0,34592.0,0.16222]
[1610364601573,0.2729,34652.0,34592.0,0.16222]
[1610364601971,0.2989,34651.0,34593.0,1.5]
[1610364602173,2.49353222,34658.0,34637.0,0.13632608]
[1610364602373,0.08954,34660.0,34637.0,0.13632608]
[1610364602574,2.49870288,34663.0,34637.0,0.13632608]
[1610364602776,0.2992,34664.0,34637.0,0.13632608]
[1610364602974,2.51086919,34670.0,34637.0,0.13632608]
[1610364603173,8.6224,34654.0,34637.0,0.13632608]
[1610364603374,0.10515,34661.0,34637.0,0.13132608]
[1610364604175,5e-05,34661.0,34635.0,0.0857]
[1610364604375,0.10713,34671.0,34635.0,0.0857]
[1610364605175,0.07643,34671.0,34635.0,0.0857]
[1610364605378,0.2725,34684.0,34635.0,0.0857]
[1610364606076,0.13632608,34686.0,34677.0,0.13632608]
[1610364606478,0.13632608,34686.0,34671.0,0.11272]
[1610364607879,0.24325608,34686.0,34662.0,0.0853]
[1610364608077,0.13632608,34663.0,34651.0,0.13632608]
[1610364608678,0.08679,34673.0,34651.0,0.13632608]
[1610364609077,0.08679,34673.0,34651.0,0.24561608]
[1610364609477,0.0868,34673.0,34651.0,0.24561608]
[1610364609679,0.10693,34686.0,34651.0,0.24561608]
[1610364610082,0.00035157,34685.0,34660.0,0.13632608]
[1610364612180,0.00035157,34685.0,34682.0,0.13632608]
[1610364612380,0.00035157,34685.0,34671.0,0.07874]
[1610364612581,0.09195,34694.0,34671.0,0.07874]
[1610364612781,4.5315,34701.0,34672.0,0.0853]
[1610364612982,0.00035146,34693.0,34671.0,0.07874]
[1610364613381,0.07681,34694.0,34671.0,0.07874]
[1610364613580,0.07681,34694.0,34662.0,0.07559]
[1610364613780,0.00035144,34693.0,34662.0,0.07559]
[1610364614181,0.13632608,34686.0,34677.0,0.13632608]
[1610364614380,0.07681,34694.0,34677.0,0.13632608]
[1610364615783,0.07681,34694.0,34674.0,0.09611]
[1610364616183,0.13632608,34675.0,34665.0,0.13632608]
[1610364616584,0.0959,34687.0,34665.0,0.13632608]
[1610364616783,0.0959,34687.0,34665.0,0.22182608]
[1610364617583,2.57078753,34704.0,34665.0,0.22182608]
[1610364617784,2.57172141,34707.0,34665.0,0.22182608]
[1610364617986,2.57164808,34708.0,34665.0,0.22182608]
[1610364618187,2.57164808,34708.0,34697.0,0.13632608]
[1610364618786,2.57258659,34710.0,34678.0,0.07036]
[1610364618985,2.57253517,34712.0,34678.0,0.07036]
[1610364619185,2.57253519,34713.0,34678.0,0.07036]
[1610364619585,2.57437583,34712.0,34679.0,0.087]
[1610364619785,2.57437583,34712.0,34678.0,0.07036]
[1610364619987,2.66876488,34713.0,34678.0,0.07036]
[1610364620188,2.66876488,34713.0,34702.0,0.13632608]
[1610364620691,0.09445,34713.0,34702.0,0.13632608]
[1610364621790,0.2727,34719.0,34702.0,0.13632608]
[1610364622192,0.2727,34719.0,34692.0,0.08339]
[1610364622193,0.2727,34719.0,34710.0,0.13632608]
[1610364622993,0.2727,34719.0,34699.0,0.10984]
[1610364623593,0.2727,34719.0,34700.0,0.0865]
[1610364623797,0.07129,34722.0,34700.0,0.0865]
[1610364624201,0.02779,34722.0,34721.0,0.13632608]
[1610364624392,0.13632608,34723.0,34721.0,0.13632608]
[1610364624595,2.74987203,34735.0,34721.0,0.13632608]
[1610364624792,2.74987203,34735.0,34721.0,0.21186608]
[1610364624993,2.74957323,34737.0,34721.0,0.21186608]
[1610364625214,2.74957323,34737.0,34721.0,0.07554]
[1610364625411,2.74800731,34740.0,34721.0,0.07554]
[1610364625692,2.74800731,34740.0,34699.0,0.10984]
[1610364625994,2.74832625,34735.0,34699.0,0.10984]
[1610364626192,0.13632608,34717.0,34699.0,0.24616608]
[1610364626393,0.13632608,34717.0,34700.0,0.0851]
[1610364626593,0.13632608,34717.0,34699.0,0.24616608]
[1610364627594,0.09934,34731.0,34700.0,0.0857]
[1610364627995,0.00035119,34730.0,34700.0,0.0857]
[1610364628195,0.00035119,34730.0,34729.0,0.13632608]
[1610364628396,0.00035119,34730.0,34716.0,0.08059]
[1610364628596,0.00035119,34730.0,34717.0,0.0851]
[1610364628793,0.00035117,34738.0,34710.0,0.0851]
[1610364628996,0.00035117,34738.0,34717.0,0.10882]
[1610364629193,0.00035115,34729.0,34717.0,0.10882]
[1610364629394,0.00035115,34737.0,34717.0,0.10882]
[1610364629595,0.08187,34740.0,34717.0,0.10882]
[1610364629794,0.00035115,34736.0,34717.0,0.10882]
[1610364630194,0.00035115,34739.0,34717.0,0.10882]
[1610364630395,0.13632608,34729.0,34726.0,0.13632608]
[1610364632097,0.09342608,34729.0,34726.0,0.13632608]
[1610364632297,0.09342608,34729.0,34717.0,0.10882]
[1610364632901,0.09342608,34729.0,34713.0,3.4986]
[1610364633501,2.67621811,34742.0,34713.0,3.4986]
[1610364633901,0.00035113,34741.0,34713.0,3.4986]
[1610364634301,0.00035113,34744.0,34730.0,0.13632608]
[1610364634701,0.00035109,34747.0,34730.0,0.21193608]
[1610364634901,0.00035107,34743.0,34730.0,0.21193608]
[1610364635100,0.00035107,34746.0,34730.0,0.21193608]
[1610364635501,0.00035107,34742.0,34730.0,0.21193608]
[1610364635702,0.00035107,34745.0,34730.0,0.21193608]
[1610364635903,0.10847,34751.0,34730.0,0.21193608]
[1610364636304,0.10847,34751.0,34730.0,0.07561]
[1610364636504,0.00035105,34750.0,34730.0,0.07561]
[1610364637105,2.56266493,34756.0,34730.0,0.07561]
[1610364637305,2.56227963,34759.0,34730.0,0.07561]
[1610364637505,0.00035096,34755.0,34730.0,0.07561]
[1610364637704,0.00035096,34758.0,34730.0,0.07561]
[1610364638504,0.10921,34760.0,34730.0,0.07561]
[1610364638505,0.00035092,34759.0,34730.0,0.07561]
[1610364638908,0.10921,34760.0,34730.0,0.07561]
[1610364639806,0.10921,34760.0,34730.0,0.10958]
[1610364640005,0.00035091,34759.0,34730.0,0.10958]
[1610364640405,0.00035091,34759.0,34758.0,0.13632608]
[1610364640806,0.00035091,34759.0,34751.0,0.0874]
[1610364641008,0.07667,34773.0,34751.0,0.0874]
[1610364641411,0.00035088,34772.0,34751.0,0.0874]
[1610364642311,0.00035088,34772.0,34759.0,0.13632608]
[1610364643613,0.00035088,34772.0,34760.0,0.0857]
[1610364644414,0.00035088,34772.0,34771.0,0.13632608]
[1610364644813,0.00035088,34772.0,34758.0,0.09034]
[1610364645013,0.08102,34779.0,34758.0,0.09034]
[1610364645415,0.00035082,34778.0,34758.0,0.09034]
[1610364645814,0.00035082,34778.0,34759.0,0.0872]
[1610364646014,0.00035082,34778.0,34758.0,0.09034]
[1610364646216,0.00035082,34778.0,34761.0,3.4846]
[1610364646415,0.00035082,34778.0,34767.0,0.13632608]
[1610364646916,0.00035082,34778.0,34761.0,3.4846]
[1610364647617,0.08102,34779.0,34761.0,3.4846]
[1610364647816,0.2701,34790.0,34761.0,3.4846]
[1610364648417,0.00035069,34789.0,34769.0,0.13632608]
[1610364648616,0.09191069,34789.0,34769.0,0.13632608]
[1610364649118,0.00035069,34788.0,34769.0,0.13632608]
[1610364649919,0.00035069,34788.0,34761.0,3.5718]
[1610364650319,0.00035069,34788.0,34769.0,0.4651]
[1610364650520,0.00035069,34788.0,34770.0,0.0873]
[1610364650720,0.00035069,34788.0,34771.0,0.0851]
[1610364652323,0.00035069,34788.0,34779.0,0.13632608]
[1610364652724,0.00035069,34788.0,34771.0,0.0851]
[1610364653125,0.00035069,34788.0,34769.0,0.4651]
[1610364654124,0.00035069,34788.0,34770.0,0.0854]
[1610364654325,0.00035069,34788.0,34777.0,0.13632608]
[1610364654527,0.04891069,34789.0,34777.0,0.13632608]
[1610364654727,0.2962,34814.0,34777.0,0.13632608]
[1610364655127,0.03018128,34813.0,34777.0,0.13632608]
[1610364655328,0.10297128,34813.0,34777.0,0.13632608]
[1610364655726,0.03017853,34812.0,34777.0,0.13632608]
[1610364656328,0.13632608,34793.0,34789.0,0.13632608]
[1610364656727,0.00035053,34792.0,34789.0,0.13632608]
[1610364657330,0.11207661,34793.0,34789.0,0.13632608]
[1610364657529,0.00035054,34791.0,34790.0,0.0863]
[1610364657929,0.00035054,34792.0,34790.0,0.0863]
[1610364658130,0.00035054,34791.0,34790.0,0.0863]
[1610364658729,0.00035051,34799.0,34790.0,0.0863]
[1610364658930,0.00035048,34791.0,34790.0,0.19353]
[1610364659129,0.00035043,34798.0,34790.0,0.19353]
[1610364659330,0.07457,34820.0,34790.0,0.19353]
[1610364659733,0.00035041,34814.0,34790.0,0.19353]
[1610364659930,0.07457,34820.0,34790.0,0.19353]
[1610364660130,0.00035036,34813.0,34790.0,0.19353]
[1610364660330,0.00035036,34813.0,34812.0,0.13632608]
[1610364660531,0.00035036,34819.0,34812.0,0.13632608]
[1610364660731,0.00035036,34813.0,34812.0,0.13632608]
[1610364660931,0.00035034,34818.0,34812.0,0.13632608]
[1610364661135,0.00035034,34818.0,34804.0,0.07523]
[1610364661331,0.00035034,34813.0,34804.0,0.07523]
[1610364661532,0.00035031,34817.0,34804.0,0.07523]
[1610364661732,0.1044,34828.0,34804.0,0.07523]
[1610364662132,0.0003503,34816.0,34804.0,0.07523]
[1610364662334,0.1044,34828.0,34815.0,0.13632608]
[1610364662335,0.13632608,34825.0,34815.0,0.13632608]
[1610364662533,0.12172608,34825.0,34815.0,0.13632608]
[1610364662734,0.00035025,34824.0,34812.0,0.10353]
[1610364662933,0.00035025,34824.0,34804.0,0.07523]
[1610364663335,0.00035025,34824.0,34790.0,0.10723]
[1610364663934,0.00035025,34824.0,34693.0,0.3179]
[1610364664135,0.02979606,34824.0,34748.0,0.0854]
[1610364664334,0.13632608,34780.0,34773.0,0.13632608]
[1610364664735,0.13632608,34780.0,34774.0,0.0863]
[1610364664935,0.13632608,34780.0,34774.0,0.17721]
[1610364665333,0.12692608,34780.0,34774.0,0.09091]
[1610364665734,0.04012608,34780.0,34774.0,0.09091]
[1610364666135,0.04012608,34780.0,34776.0,4.8004]
[1610364666333,0.04012608,34780.0,34779.0,0.13632608]
[1610364666535,0.04012608,34780.0,34776.0,4.8004]
[1610364667835,0.04012608,34780.0,34776.0,4.67476174]
[1610364668835,0.00035051,34779.0,34776.0,4.67476174]
[1610364669036,0.00035051,34779.0,34774.0,0.09091]
[1610364670240,0.00035051,34779.0,34762.0,3.6725]
[1610364670437,0.00035051,34779.0,34766.0,0.13632608]
[1610364670639,0.00035051,34779.0,34767.0,0.0869]
[1610364670837,0.00035051,34779.0,34764.0,0.09836]
[1610364671038,0.0747,34795.0,34764.0,0.09836]
[1610364671039,0.08024,34787.0,34764.0,0.09836]
[1610364671238,0.00035062,34778.0,34764.0,0.09836]
[1610364671438,0.00035062,34786.0,34764.0,0.09836]
[1610364672144,0.0747,34795.0,34764.0,0.09836]
[1610364672342,4.817,34805.0,34764.0,0.09836]
[1610364672544,2.98700332,34822.0,34796.0,0.13632608]
[1610364672746,0.00035049,34804.0,34796.0,0.13632608]
[1610364672944,0.07351,34811.0,34796.0,0.13632608]
[1610364673145,0.07351,34811.0,34796.0,0.21039608]
[1610364673345,0.00035041,34810.0,34796.0,0.21039608]
[1610364673545,0.2726,34822.0,34796.0,0.07407]
[1610364673745,0.2726,34822.0,34797.0,0.0859]
[1610364673945,0.02978902,34821.0,34797.0,0.0859]
[1610364674145,0.00035038,34821.0,34797.0,0.0859]
[1610364674347,0.00035036,34820.0,34797.0,0.0859]
[1610364674546,0.13632608,34798.0,34797.0,0.0859]
[1610364674745,0.13632608,34798.0,34796.0,0.07407]
[1610364674947,0.1366764,34798.0,34796.0,0.07407]
[1610364675148,0.13632608,34798.0,34796.0,0.07407]
[1610364675350,0.2726,34822.0,34796.0,0.07407]
[1610364675748,0.00035032,34821.0,34796.0,0.07407]
[1610364676448,0.13632608,34804.0,34803.0,0.13632608]
[1610364676649,0.00035032,34821.0,34803.0,0.13632608]
[1610364676849,0.00035032,34821.0,34803.0,0.21978608]
[1610364677654,0.2726,34822.0,34803.0,0.30608608]
[1610364677856,0.00035024,34820.0,34803.0,0.30608608]
[1610364678050,0.00035024,34821.0,34803.0,0.30608608]
[1610364678251,0.00035024,34819.0,34804.0,3.4203]
[1610364678452,0.00035024,34819.0,34813.0,0.13632608]
[1610364678651,0.09832,34839.0,34813.0,0.13632608]
[1610364678652,0.09832,34839.0,34813.0,0.24194608]
[1610364678852,0.00035021,34818.0,34813.0,0.24194608]
[1610364679052,0.00035021,34838.0,34813.0,0.24194608]
[1610364679452,0.08467021,34839.0,34813.0,0.24194608]
[1610364679654,0.08467021,34839.0,34814.0,0.0869]
[1610364680458,4.1423,34858.0,34838.0,0.13632608]
[1610364681055,0.02974129,34857.0,34838.0,0.13632608]
[1610364681253,0.12959129,34857.0,34838.0,0.13632608]
[1610364681855,0.02973578,34856.0,34838.0,0.13632608]
[1610364682255,0.08925,34864.0,34838.0,0.13632608]
[1610364682454,0.00034994,34855.0,34838.0,0.13632608]
[1610364682655,5e-05,34864.0,34828.0,0.07623]
[1610364682856,0.00034993,34863.0,34828.0,0.07623]
[1610364683056,0.07883,34872.0,34828.0,0.07623]
[1610364683255,0.07883,34872.0,34866.0,0.13632608]
[1610364683455,0.2758,34889.0,34866.0,0.13632608]
[1610364683656,0.00034979,34871.0,34866.0,0.13632608]
[1610364683856,0.08446,34884.0,34856.0,0.0866]
[1610364684063,0.00034975,34870.0,34856.0,0.0866]
[1610364684459,0.09673,34877.0,34856.0,0.0866]
[1610364684657,0.00034975,34869.0,34856.0,0.0866]
[1610364684858,0.00034975,34876.0,34856.0,0.0866]
[1610364685157,0.09673,34877.0,34856.0,0.0866]
[1610364685359,0.13632608,34857.0,34856.0,0.0866]
[1610364687362,0.09673,34877.0,34856.0,0.0866]
[1610364687780,0.00034973,34876.0,34856.0,0.0866]
[1610364688370,0.00034973,34883.0,34856.0,0.0866]
[1610364688569,0.00034971,34875.0,34848.0,0.13632608]
[1610364688769,0.00034971,34882.0,34848.0,0.13632608]
[1610364689163,0.08446,34884.0,34848.0,0.23877608]
[1610364689364,0.08446,34884.0,34868.0,0.13632608]
[1610364689572,0.10121,34891.0,34868.0,0.13632608]
[1610364690782,0.10121,34891.0,34863.0,0.10957]
[1610364691378,0.13632608,34864.0,34848.0,0.10245]
[1610364691775,0.08812,34877.0,34848.0,0.10245]
[1610364692973,0.08812,34877.0,34849.0,0.0864]
[1610364693375,0.13632608,34870.0,34855.0,0.13632608]
[1610364693573,0.13632608,34870.0,34856.0,0.0865]
[1610364693775,0.13632608,34870.0,34856.0,0.16866]
[1610364695375,0.13632608,34870.0,34869.0,0.13632608]
[1610364696175,0.13632608,34870.0,34869.0,0.22192608]
[1610364696375,0.13632608,34870.0,34869.0,0.0856]
[1610364696977,0.01441,34891.0,34869.0,0.0856]
[1610364697178,2.8659354,34927.0,34869.0,0.0856]
[1610364697379,0.286,34926.0,34891.0,0.13632608]
[1610364697579,0.38098963,34926.0,34891.0,0.13632608]
[1610364697779,0.00034963,34925.0,34891.0,0.13632608]
[1610364698380,0.38064,34926.0,34891.0,0.13632608]
[1610364698583,0.38064,34926.0,34892.0,0.0857]
[1610364699380,0.13632608,34893.0,34892.0,0.0857]
[1610364699681,0.05102608,34893.0,34892.0,0.0857]
[1610364699982,0.08997,34912.0,34892.0,0.0857]
[1610364700381,0.04707,34912.0,34892.0,0.0857]
[1610364700580,0.04707,34912.0,34891.0,0.13632608]
[1610364701381,0.04707,34912.0,34904.0,0.13632608]
[1610364701781,0.38064,34926.0,34895.0,0.10444]
[1610364702583,0.38064,34926.0,34886.0,0.08384]
[1610364702983,0.00034956,34925.0,34886.0,0.08384]
[1610364703284,0.13632608,34887.0,34886.0,0.08384]
[1610364703686,0.13632608,34887.0,34877.0,0.22342608]
[1610364703886,0.0895,34915.0,34877.0,0.22342608]
[1610364704084,0.0895,34915.0,34877.0,0.32015608]
[1610364704285,0.00034955,34914.0,34877.0,0.32015608]
[1610364704685,0.0895,34915.0,34877.0,0.32015608]
[1610364705285,0.0895,34915.0,34896.0,0.13632608]
[1610364706488,0.0895,34915.0,34884.0,0.0935]
[1610364707290,0.0895,34915.0,34902.0,0.13632608]
[1610364708893,0.09464,34926.0,34902.0,0.13632608]
[1610364709093,0.00034945,34914.0,34902.0,0.13632608]
[1610364709292,0.10812,34914.0,34902.0,0.13632608]
[1610364709491,0.13632608,34903.0,34902.0,0.13632608]
[1610364709691,0.13632608,34903.0,34891.0,0.07983]
[1610364709891,0.13632608,34903.0,34885.0,4.0626]
[1610364710091,0.00034947,34902.0,34885.0,4.0626]
[1610364711290,0.00034947,34902.0,34885.0,4.1495]
[1610364711494,0.07991,34906.0,34898.0,0.13632608]
[1610364712497,0.00034943,34905.0,34898.0,0.13632608]
[1610364712697,0.00034943,34905.0,34899.0,0.0855]
[1610364713497,0.00034943,34905.0,34904.0,0.13632608]
[1610364713911,0.2984,34940.0,34904.0,0.13632608]
[1610364714297,0.02899731,34930.0,34904.0,0.13632608]
[1610364714498,0.10049731,34930.0,34904.0,0.13632608]
[1610364714903,0.00034933,34929.0,34904.0,0.22292608]
[1610364715399,0.00034933,34929.0,34928.0,0.13632608]
[1610364716400,0.0289863,34964.0,34928.0,0.13632608]
[1610364716804,0.00034921,34929.0,34928.0,0.13632608]
[1610364717000,0.08061,34948.0,34928.0,0.13632608]
[1610364717207,0.00034921,34929.0,34926.0,0.07219]
[1610364717402,0.02624185,34947.0,34926.0,0.07219]
[1610364717801,0.02624185,34947.0,34943.0,0.13632608]
[1610364718602,0.00034921,34947.0,34943.0,0.13632608]
[1610364718802,0.00034912,34946.0,34943.0,0.13632608]
[1610364719401,0.00034908,34947.0,34943.0,0.13632608]
[1610364719602,0.00034908,34945.0,34943.0,0.13632608]
[1610364719802,0.13632608,34944.0,34943.0,0.13632608]
[1610364720002,0.07862608,34944.0,34943.0,0.13632608]
[1610364720202,0.00034908,34944.0,34943.0,0.13632608]
[1610364720402,0.08061,34948.0,34943.0,0.13632608]
[1610364720603,0.05741,34948.0,34943.0,0.13632608]
[1610364721005,0.00034904,34947.0,34943.0,0.13632608]
[1610364721205,0.08905,34958.0,34943.0,0.13632608]
[1610364721726,0.00034902,34957.0,34954.0,0.13632608]
[1610364721926,0.00034902,34957.0,34938.0,0.08538]
[1610364723716,0.13632608,34945.0,34943.0,0.13632608]
[1610364724106,0.00034894,34944.0,34943.0,0.13632608]
[1610364725709,0.13632608,34950.0,34943.0,0.13632608]
[1610364726109,0.07395,34958.0,34943.0,0.13632608]
[1610364726310,4.2543,34973.0,34943.0,0.13632608]
[1610364726710,0.00034892,34972.0,34943.0,0.13632608]
[1610364726913,0.07951892,34972.0,34943.0,0.13632608]
[1610364727512,0.00034892,34971.0,34943.0,0.13632608]
[1610364727711,0.00034892,34971.0,34957.0,0.13632608]
[1610364729813,0.00034892,34971.0,34965.0,0.13632608]
[1610364730817,4.2543,34973.0,34965.0,0.13632608]
[1610364731414,0.295,35014.0,34965.0,0.13632608]
[1610364731613,0.2811,35006.0,34965.0,0.23928608]
[1610364731814,0.13632608,34994.0,34992.0,0.13632608]
[1610364732016,0.24538608,34994.0,34992.0,0.13632608]
[1610364732216,0.00034866,34993.0,34965.0,0.10296]
[1610364732415,0.20483474,34994.0,34965.0,0.10296]
[1610364732614,0.00514225,34994.0,34965.0,0.10296]
[1610364732815,0.10497,35006.0,34965.0,0.10296]
[1610364733316,0.00034858,35005.0,34965.0,0.10296]
[1610364733718,0.13632608,34975.0,34968.0,0.13632608]
[1610364734321,0.09735,34990.0,34968.0,0.13632608]
[1610364734719,0.09735,34990.0,34976.0,3.4047]
[1610364735120,0.2728,35005.0,34976.0,3.4047]
[1610364735621,0.00034857,35004.0,34976.0,3.4047]
[1610364735820,0.13632608,35004.0,34997.0,0.13632608]
[1610364736222,0.13632608,35004.0,34985.0,0.11354]
[1610364736421,0.10174,35007.0,34985.0,0.11354]
[1610364737421,0.10174,35007.0,34986.0,0.5693]
[1610364737824,0.10174,35007.0,35002.0,0.13632608]
[1610364738222,0.10174,35007.0,34987.0,0.0846]
[1610364738422,0.01574,35007.0,34987.0,0.0846]
[1610364739723,0.01574,35007.0,35006.0,0.13632608]
[1610364740925,1.0,35054.0,35006.0,0.22152608]
[1610364741326,0.00034837,35042.0,35006.0,0.22152608]
[1610364741529,0.11222837,35042.0,35006.0,0.22152608]
[1610364741725,0.11222837,35042.0,35032.0,0.13632608]
[1610364741925,0.00034832,35041.0,35032.0,0.13632608]
[1610364742127,0.11188,35042.0,35032.0,0.13632608]
[1610364742728,0.11188,35042.0,35014.0,0.07575]
[1610364742925,0.11188,35042.0,35014.0,0.16185]
[1610364743125,0.11188,35042.0,35014.0,0.07575]